fUST/lending_fUST_20250522
["ID","MTS","AMOUNT","RATE_DAILY","PERIOD"]
[361946980,1747905041602,-527.17,0.00022191,2]
[361946981,1747905041612,-430.0,0.00022191,2]
[361946982,1747905041621,-430.0,0.00022191,2]
[361946983,1747905041631,-270.0,0.00022191,2]
[361946984,1747905041641,-450.0,0.00022191,2]
[361946985,1747905041651,-430.0,0.00022191,2]
[361946986,1747905041661,-430.0,0.00022191,2]
[361946987,1747905041670,-450.0,0.00022191,2]
[361946988,1747905041680,-270.0,0.00022191,2]
[361946989,1747905041689,-430.0,0.00022191,2]
[361946990,1747905041700,-430.0,0.00022191,2]
[361946991,1747905041710,-385.53762506,0.00022191,2]
[361946992,1747905041719,-430.0,0.00022191,2]
[361946993,1747905041846,-1152.7,0.00022191,2]
[361946994,1747905041856,-1174.67,0.00022191,2]
[361946995,1747905041866,-430.0,0.00022191,2]
[361946996,1747905041876,-430.0,0.00022191,2]
[361946997,1747905041886,-430.0,0.00022191,2]
[361946998,1747905041895,-391.52853431,0.00022191,2]
[361946999,1747905041905,-430.0,0.00022191,2]
[361947000,1747905041916,-430.0,0.00022191,2]
[361947001,1747905041925,-430.0,0.00022191,2]
[361947002,1747905041935,-2078.59,0.00022191,2]
[361947003,1747905041945,-270.0,0.00022191,2]
[361947004,1747905041955,-430.0,0.00022191,2]
[361947005,1747905041964,-430.0,0.00022191,2]
[361947006,1747905041974,-430.0,0.00022191,2]
[361947007,1747905041983,-430.0,0.00022191,2]
[361947008,1747905041993,-430.0,0.00022191,2]
[361947009,1747905042003,-430.0,0.00022191,2]
[361947010,1747905042012,-514.37,0.00022191,2]
[361947011,1747905042022,-430.0,0.00022191,2]
[361947012,1747905042030,-430.0,0.00022191,2]
[361947013,1747905042040,-430.0,0.00022191,2]
[361947014,1747905042050,-430.0,0.00022191,2]
[361947015,1747905042059,-430.0,0.00022191,2]
[361947016,1747905042068,-450.0,0.00022191,2]
[361947017,1747905042078,-650.91,0.00022191,2]
[361947018,1747905042087,-420.0,0.00022191,2]
[361947019,1747905042097,-1542.43,0.00022191,2]
[361947020,1747905042107,-430.0,0.00022191,2]
[361947021,1747905042117,-453.72,0.00022191,2]
[361947022,1747905042126,-430.0,0.00022191,2]
[361947023,1747905042136,-430.0,0.00022191,2]
[361947024,1747905042146,-430.0,0.00022191,2]
[361947025,1747905042155,-1039.39,0.00022191,2]
[361947026,1747905042167,-430.0,0.00022191,2]
[361947027,1747905042178,-430.0,0.00022191,2]
[361947028,1747905042187,-430.0,0.00022191,2]
[361947029,1747905042199,-939.47,0.00022191,2]
[361947030,1747905042210,-430.0,0.00022191,2]
[361947031,1747905042219,-370.81126325,0.00022191,2]
[361947032,1747905042229,-430.0,0.00022191,2]
[361947033,1747905042239,-470.0,0.00022191,2]
[361947034,1747905042250,-502.24,0.00022191,2]
[361947035,1747905042260,-430.0,0.00022191,2]
[361947036,1747905042269,-615.75,0.00022191,2]
[361947037,1747905042278,-430.0,0.00022191,2]
[361947038,1747905042288,-430.0,0.00022191,2]
[361947039,1747905042297,-430.0,0.00022191,2]
[361947040,1747905042306,-430.0,0.00022191,2]
[361947041,1747905042315,-430.0,0.00022191,2]
[361947042,1747905042325,-430.0,0.00022191,2]
[361947043,1747905042334,-372.14020553,0.00022191,2]
[361947044,1747905042347,-430.0,0.00022191,2]
[361947045,1747905042356,-430.0,0.00022191,2]
[361947046,1747905042366,-430.0,0.00022191,2]
[361947047,1747905042375,-430.0,0.00022191,2]
[361947048,1747905042385,-430.0,0.00022191,2]
[361947049,1747905042394,-470.0,0.00022191,2]
[361947050,1747905042404,-430.0,0.00022191,2]
[361947051,1747905042414,-2634.84,0.00022191,2]
[361947052,1747905042423,-160.94,0.00022191,2]
[361947053,1747905042433,-430.0,0.00022191,2]
[361947054,1747905042443,-1270.52,0.00022191,2]
[361947055,1747905042454,-430.0,0.00022191,2]
[361947056,1747905042463,-430.0,0.00022191,2]
[361947057,1747905042473,-470.0,0.00022191,2]
[361947058,1747905042483,-430.0,0.00022191,2]
[361947059,1747905042492,-3443.6,0.00022191,2]
[361947060,1747905042502,-430.0,0.00022191,2]
[361947061,1747905042511,-430.0,0.00022191,2]
[361947062,1747905042521,-470.0,0.00022191,2]
[361947063,1747905042530,-430.0,0.00022191,2]
[361947064,1747905042540,-629.54,0.00022191,2]
[361947065,1747905042549,-430.0,0.00022191,2]
[361947066,1747905042560,-430.0,0.00022191,2]
[361947067,1747905042569,-450.0,0.00022191,2]
[361947068,1747905042579,-430.0,0.00022191,2]
[361947069,1747905042588,-400.0,0.00022191,2]
[361947070,1747905042598,-1159.65,0.00022191,2]
[361947071,1747905042612,-624.34,0.00022191,2]
[361947072,1747905042632,-430.0,0.00022191,2]
[361947073,1747905042652,-430.0,0.00022191,2]
[361947074,1747905042668,-430.0,0.00022191,2]
[361947075,1747905042684,-470.0,0.00022191,2]
[361947076,1747905042702,-484.96,0.00022191,2]
[361947077,1747905042719,-433.71416883,0.00022191,2]
[361947078,1747905042738,-430.0,0.00022191,2]
[361947079,1747905042754,-430.0,0.00022191,2]
[361947080,1747905042769,-430.0,0.00022191,2]
[361947081,1747905042785,-370.0,0.00022191,2]
[361947082,1747905042801,-430.0,0.00022191,2]
[361947083,1747905042815,-440.0,0.00022191,2]
[361947084,1747905042830,-3225.94447753,0.0002221,6]
[361947085,1747905042844,-5000.0,0.00022235,2]
[361947086,1747905042861,-3225.94447753,0.00022314,7]
[361947087,1747905042878,-2636.45849817,0.00022335,2]
[361947088,1747905042897,-245.37591476,0.00022415,2]
[361947089,1747905042913,-3225.94447753,0.00022417,7]
[361947090,1747905042925,-160.0,0.00022417,2]
[361947091,1747905042937,-212.4501065,0.0002242,2]
[361947092,1747905042958,-422.78357425,0.00022421,2]
[361947093,1747905042973,-160.0,0.00022421,2]
[361947094,1747905042988,-160.0,0.00022421,2]
[361947095,1747905043003,-160.0,0.00022421,2]
[361947096,1747905043017,-160.0,0.00022421,2]
[361947097,1747905043029,-314.54559427,0.00022424,2]
[361947098,1747905043043,-508.12,0.00022464,2]
[361947099,1747905043056,-508.12,0.00022464,2]
[361947101,1747905043071,-430.0,0.00022465,2]
[361947102,1747905043085,-430.0,0.00022465,2]
[361947103,1747905043098,-430.0,0.00022465,2]
[361947104,1747905043111,-430.0,0.00022465,2]
[361947105,1747905043125,-430.0,0.00022465,2]
[361947106,1747905043138,-430.0,0.00022465,2]
[361947107,1747905043152,-430.0,0.00022465,2]
[361947108,1747905043166,-430.0,0.00022465,2]
[361947109,1747905043182,-430.0,0.00022465,2]
[361947110,1747905043195,-430.0,0.00022465,2]
[361947111,1747905043210,-430.0,0.00022465,2]
[361947112,1747905043225,-430.0,0.00022465,2]
[361947113,1747905043239,-430.0,0.00022465,2]
[361947114,1747905043253,-430.0,0.00022465,2]
[361947116,1747905043268,-430.0,0.00022465,2]
[361947118,1747905043281,-390.0,0.00022465,2]
[361947120,1747905043295,-430.0,0.00022465,2]
[361947122,1747905043312,-430.0,0.00022465,2]
[361947124,1747905043327,-430.0,0.00022465,2]
[361947126,1747905043340,-430.0,0.00022465,2]
[361947128,1747905043354,-430.0,0.00022465,2]
[361947129,1747905043368,-430.0,0.00022465,2]
[361947131,1747905043383,-430.0,0.00022465,2]
[361947135,1747905043398,-430.0,0.00022465,2]
[361947138,1747905043412,-430.0,0.00022465,2]
[361947142,1747905043427,-430.0,0.00022465,2]
[361947146,1747905043441,-470.0,0.00022465,2]
[361947149,1747905043455,-430.0,0.00022465,2]
[361947153,1747905043470,-430.0,0.00022465,2]
[361947156,1747905043484,-430.0,0.00022465,2]
[361947159,1747905043497,-430.0,0.00022465,2]
[361947160,1747905043511,-430.0,0.00022465,2]
[361947162,1747905043525,-490.0,0.00022465,2]
[361947165,1747905043539,-430.0,0.00022465,2]
[361947168,1747905043552,-430.0,0.00022465,2]
[361947170,1747905043566,-430.0,0.00022465,2]
[361947171,1747905043579,-430.0,0.00022465,2]
[361947173,1747905043592,-430.0,0.00022465,2]
[361947175,1747905043605,-207.81000839,0.00022465,2]
[361947178,1747905043620,-430.0,0.00022465,2]
[361947180,1747905043633,-430.0,0.00022465,2]
[361947183,1747905043648,-430.0,0.00022465,2]
[361947186,1747905043662,-165.91,0.00022465,2]
[361947188,1747905043676,-430.0,0.00022465,2]
[361947191,1747905043691,-430.0,0.00022465,2]
[361947193,1747905043706,-430.0,0.00022465,2]
[361947195,1747905043716,-430.0,0.00022465,2]
[361947216,1747905043913,-578.48,0.00022465,2]
[361947218,1747905043923,-514.01,0.00022465,2]
[361947220,1747905043932,-490.0,0.00022465,2]
[361947222,1747905043943,-430.0,0.00022465,2]
[361947224,1747905043954,-430.0,0.00022465,2]
[361947226,1747905043964,-430.0,0.00022465,2]
[361947229,1747905043975,-490.0,0.00022465,2]
[361947231,1747905043984,-430.0,0.00022465,2]
[361947233,1747905043993,-430.0,0.00022465,2]
[361947235,1747905044003,-430.0,0.00022465,2]
[361947237,1747905044012,-430.0,0.00022465,2]
[361947239,1747905044021,-430.0,0.00022465,2]
[361947241,1747905044030,-470.0,0.00022465,2]
[361947243,1747905044041,-186.2,0.00022465,2]
[361947245,1747905044050,-430.0,0.00022465,2]
[361947247,1747905044060,-681.73,0.00022465,2]
[361947249,1747905044069,-430.0,0.00022465,2]
[361947251,1747905044079,-430.0,0.00022465,2]
[361947253,1747905044088,-430.0,0.00022465,2]
[361947255,1747905044097,-430.0,0.00022465,2]
[361947257,1747905044107,-936.54,0.00022465,2]
[361947259,1747905044116,-430.0,0.00022465,2]
[361947261,1747905044125,-430.0,0.00022465,2]
[361947263,1747905044135,-430.0,0.00022465,2]
[361947265,1747905044145,-430.0,0.00022465,2]
[361947267,1747905044154,-430.0,0.00022465,2]
[361947269,1747905044164,-430.0,0.00022465,2]
[361947271,1747905044176,-430.0,0.00022465,2]
[361947273,1747905044186,-430.0,0.00022465,2]
[361947275,1747905044195,-430.0,0.00022465,2]
[361947277,1747905044206,-430.0,0.00022465,2]
[361947279,1747905044216,-430.0,0.00022465,2]
[361947281,1747905044225,-430.0,0.00022465,2]
[361947283,1747905044236,-490.0,0.00022465,2]
[361947285,1747905044247,-430.0,0.00022465,2]
[361947288,1747905044257,-430.0,0.00022465,2]
[361947290,1747905044267,-2992.01,0.00022465,2]
[361947292,1747905044277,-430.0,0.00022465,2]
[361947294,1747905044286,-430.0,0.00022465,2]
[361947296,1747905044295,-490.0,0.00022465,2]
[361947298,1747905044305,-229.41361992,0.00022465,2]
[361947313,1747905044466,-1282.44638008,0.00022465,2]
[361947315,1747905044477,-661.99,0.00022465,2]
[361947317,1747905044487,-296.11450631,0.00022465,2]
[361947319,1747905044497,-430.0,0.00022465,2]
[361947321,1747905044507,-468.48,0.00022465,2]
[361947323,1747905044517,-437.6,0.00022465,2]
[361947325,1747905044527,-527.17,0.00022465,2]
[361947327,1747905044536,-430.0,0.00022465,2]
[361947329,1747905044546,-430.0,0.00022465,2]
[361947331,1747905044555,-430.0,0.00022465,2]
[361947333,1747905044565,-430.0,0.00022465,2]
[361947335,1747905044574,-430.0,0.00022465,2]
[361947337,1747905044584,-430.0,0.00022465,2]
[361947339,1747905044593,-430.0,0.00022465,2]
[361947341,1747905044603,-1152.7,0.00022465,2]
[361947343,1747905044612,-1174.67,0.00022465,2]
[361947345,1747905044622,-430.0,0.00022465,2]
[361947347,1747905044632,-430.0,0.00022465,2]
[361947349,1747905044645,-430.0,0.00022465,2]
[361947351,1747905044656,-430.0,0.00022465,2]
[361947353,1747905044666,-430.0,0.00022465,2]
[361947355,1747905044676,-430.0,0.00022465,2]
[361947357,1747905044685,-2078.59,0.00022465,2]
[361947359,1747905044696,-430.0,0.00022465,2]
[361947361,1747905044705,-430.0,0.00022465,2]
[361947363,1747905044714,-430.0,0.00022465,2]
[361947365,1747905044724,-430.0,0.00022465,2]
[361947367,1747905044734,-430.0,0.00022465,2]
[361947369,1747905044743,-430.0,0.00022465,2]
[361947371,1747905044753,-514.37,0.00022465,2]
[361947373,1747905044763,-430.0,0.00022465,2]
[361947375,1747905044773,-430.0,0.00022465,2]
[361947377,1747905044782,-430.0,0.00022465,2]
[361947379,1747905044792,-430.0,0.00022465,2]
[361947381,1747905044801,-430.0,0.00022465,2]
[361947383,1747905044811,-650.91,0.00022465,2]
[361947385,1747905044820,-1542.43,0.00022465,2]
[361947387,1747905044830,-470.0,0.00022465,2]
[361947389,1747905044841,-453.72,0.00022465,2]
[361947392,1747905044851,-490.0,0.00022465,2]
[361947394,1747905044860,-490.0,0.00022465,2]
[361947396,1747905044870,-430.0,0.00022465,2]
[361947398,1747905044879,-1039.39,0.00022465,2]
[361947400,1747905044890,-430.0,0.00022465,2]
[361947402,1747905044899,-430.0,0.00022465,2]
[361947404,1747905044909,-430.0,0.00022465,2]
[361947406,1747905044919,-939.47,0.00022465,2]
[361947408,1747905044929,-430.0,0.00022465,2]
[361947410,1747905044939,-365.0,0.00022465,2]
[361947412,1747905044950,-502.24,0.00022465,2]
[361947414,1747905044960,-554.08782209,0.00022465,2]
[361947416,1747905044969,-615.75,0.00022465,2]
[361947418,1747905044979,-430.0,0.00022465,2]
[361947420,1747905044989,-430.0,0.00022465,2]
[361947422,1747905044999,-430.0,0.00022465,2]
[361947424,1747905045009,-430.0,0.00022465,2]
[361947426,1747905045019,-340.0,0.00022465,2]
[361947428,1747905045029,-470.0,0.00022465,2]
[361947430,1747905045038,-370.0,0.00022465,2]
[361947432,1747905045047,-430.0,0.00022465,2]
[361947434,1747905045058,-430.0,0.00022465,2]
[361947436,1747905045067,-430.0,0.00022465,2]
[361947438,1747905045077,-430.0,0.00022465,2]
[361947440,1747905045087,-2634.84,0.00022465,2]
[361947442,1747905045096,-430.0,0.00022465,2]
[361947444,1747905045105,-430.0,0.00022465,2]
[361947447,1747905045115,-1270.52,0.00022465,2]
[361947448,1747905045125,-430.0,0.00022465,2]
[361947451,1747905045135,-430.0,0.00022465,2]
[361947453,1747905045145,-430.0,0.00022465,2]
[361947455,1747905045156,-3443.6,0.00022465,2]
[361947457,1747905045167,-430.0,0.00022465,2]
[361947459,1747905045178,-430.0,0.00022465,2]
[361947461,1747905045188,-430.0,0.00022465,2]
[361947463,1747905045198,-629.54,0.00022465,2]
[361947465,1747905045209,-430.0,0.00022465,2]
[361947467,1747905045219,-430.0,0.00022465,2]
[361947469,1747905045229,-443.52,0.00022465,2]
[361947471,1747905045239,-1159.65,0.00022465,2]
[361947473,1747905045249,-624.34,0.00022465,2]
[361947475,1747905045260,-430.0,0.00022465,2]
[361947477,1747905045269,-430.0,0.00022465,2]
[361947479,1747905045279,-430.0,0.00022465,2]
[361947481,1747905045288,-430.0,0.00022465,2]
[361947483,1747905045298,-430.0,0.00022465,2]
[361947485,1747905045308,-430.0,0.00022465,2]
[361947487,1747905045318,-430.0,0.00022465,2]
[361947489,1747905045327,-1000.0,0.00022521,2]
[361947491,1747905045337,-1000.0,0.00022521,2]
[361947493,1747905045346,-1000.0,0.00022521,2]
[361947495,1747905045356,-1000.0,0.00022521,2]
[361947497,1747905045366,-507.39645196,0.00022521,2]
[361947499,1747905045376,-1000.0,0.00022521,2]
[361947501,1747905045386,-1000.0,0.00022521,2]
[361947504,1747905045396,-1000.0,0.00022521,2]
[361947506,1747905045406,-290.59976122,0.00022521,2]
[361947508,1747905045416,-1000.0,0.00022521,2]
[361947510,1747905045425,-1000.0,0.00022521,2]
[361947512,1747905045435,-1000.0,0.00022521,2]
[361947514,1747905045446,-3225.94447753,0.00022521,7]
[361947516,1747905045456,-3225.94447753,0.00022624,7]
[361947518,1747905045466,-420.0,0.0002263,2]
[361947520,1747905045475,-500.0,0.00022639,2]
[361947522,1747905045484,-513.94631093,0.00022721,2]
[361947523,1747905045495,-3225.94447753,0.00022728,7]
[361947524,1747905045504,-151.0,0.00022729,2]
[361947525,1747905045515,-207.4,0.00022729,2]
[361947526,1747905045525,-508.12,0.00022738,2]
[361947527,1747905045535,-430.0,0.00022739,2]
[361947528,1747905045546,-430.0,0.00022739,2]
[361947529,1747905045556,-430.0,0.00022739,2]
[361947530,1747905045567,-283.08,0.00022739,2]
[361947531,1747905045578,-430.0,0.00022739,2]
[361947532,1747905045588,-430.0,0.00022739,2]
[361947533,1747905045598,-430.0,0.00022739,2]
[361947534,1747905045608,-549.43823691,0.00022739,2]
[361947535,1747905045618,-430.0,0.00022739,2]
[361947536,1747905045628,-190.62,0.00022739,2]
[361947537,1747905045638,-430.0,0.00022739,2]
[361947538,1747905045649,-491.02,0.00022739,2]
[361947539,1747905045660,-430.0,0.00022739,2]
[361947540,1747905045669,-430.0,0.00022739,2]
[361947541,1747905045691,-430.0,0.00022739,2]
[361947542,1747905045705,-430.0,0.00022739,2]
[361947543,1747905045716,-430.0,0.00022739,2]
[361947544,1747905045727,-430.0,0.00022739,2]
[361947545,1747905045737,-430.0,0.00022739,2]
[361947546,1747905045747,-430.0,0.00022739,2]
[361947547,1747905045757,-430.0,0.00022739,2]
[361947548,1747905045768,-430.0,0.00022739,2]
[361947549,1747905045779,-430.0,0.00022739,2]
[361947550,1747905045789,-430.0,0.00022739,2]
[361947552,1747905045800,-430.0,0.00022739,2]
[361947554,1747905045810,-430.0,0.00022739,2]
[361947556,1747905045820,-430.0,0.00022739,2]
[361947558,1747905045830,-430.0,0.00022739,2]
[361947560,1747905045839,-430.0,0.00022739,2]
[361947562,1747905045849,-430.0,0.00022739,2]
[361947565,1747905045860,-317.09,0.00022739,2]
[361947567,1747905045871,-430.0,0.00022739,2]
[361947569,1747905045881,-578.48,0.00022739,2]
[361947571,1747905045892,-514.01,0.00022739,2]
[361947572,1747905045901,-432.00431272,0.00022739,2]
[361947573,1747905045911,-490.0,0.00022739,2]
[361947574,1747905045920,-430.0,0.00022739,2]
[361947575,1747905045930,-430.0,0.00022739,2]
[361947595,1747905046099,-510.0,0.00022739,2]
[361947597,1747905046110,-430.0,0.00022739,2]
[361947599,1747905046120,-430.0,0.00022739,2]
[361947601,1747905046129,-430.0,0.00022739,2]
[361947603,1747905046138,-430.0,0.00022739,2]
[361947605,1747905046148,-681.73,0.00022739,2]
[361947607,1747905046157,-562.58357322,0.00022739,2]
[361947609,1747905046170,-430.0,0.00022739,2]
[361947611,1747905046180,-430.0,0.00022739,2]
[361947613,1747905046190,-430.0,0.00022739,2]
[361947615,1747905046200,-430.0,0.00022739,2]
[361947617,1747905046211,-430.0,0.00022739,2]
[361947619,1747905046220,-936.54,0.00022739,2]
[361947621,1747905046230,-430.0,0.00022739,2]
[361947623,1747905046239,-430.0,0.00022739,2]
[361947625,1747905046255,-575.87684312,0.00022739,2]
[361947627,1747905046266,-430.0,0.00022739,2]
[361947629,1747905046275,-430.0,0.00022739,2]
[361947632,1747905046286,-430.0,0.00022739,2]
[361947634,1747905046295,-430.0,0.00022739,2]
[361947636,1747905046306,-430.0,0.00022739,2]
[361947638,1747905046318,-430.0,0.00022739,2]
[361947640,1747905046329,-452.21,0.00022739,2]
[361947642,1747905046340,-430.0,0.00022739,2]
[361947644,1747905046350,-430.0,0.00022739,2]
[361947646,1747905046360,-2992.01,0.00022739,2]
[361947648,1747905046370,-430.0,0.00022739,2]
[361947650,1747905046380,-430.0,0.00022739,2]
[361947653,1747905046391,-1511.86,0.00022739,2]
[361947655,1747905046400,-661.99,0.00022739,2]
[361947657,1747905046410,-430.0,0.00022739,2]
[361947659,1747905046420,-468.48,0.00022739,2]
[361947661,1747905046433,-437.6,0.00022739,2]
[361947663,1747905046443,-527.17,0.00022739,2]
[361947665,1747905046453,-430.0,0.00022739,2]
[361947667,1747905046462,-430.0,0.00022739,2]
[361947669,1747905046472,-430.0,0.00022739,2]
[361947671,1747905046482,-518.16242851,0.00022739,2]
[361947673,1747905046492,-430.0,0.00022739,2]
[361947675,1747905046502,-430.0,0.00022739,2]
[361947677,1747905046511,-1152.7,0.00022739,2]
[361947679,1747905046521,-1174.67,0.00022739,2]
[361947681,1747905046531,-430.0,0.00022739,2]
[361947683,1747905046540,-430.0,0.00022739,2]
[361947685,1747905046551,-430.0,0.00022739,2]
[361947687,1747905046560,-430.0,0.00022739,2]
[361947688,1747905046570,-430.0,0.00022739,2]
[361947690,1747905046579,-430.0,0.00022739,2]
[361947692,1747905046590,-2078.59,0.00022739,2]
[361947694,1747905046599,-213.60431757,0.00022739,2]
[361947696,1747905046609,-528.69128461,0.00022739,2]
[361947698,1747905046619,-430.0,0.00022739,2]
[361947700,1747905046630,-430.0,0.00022739,2]
[361947702,1747905046639,-430.0,0.00022739,2]
[361947704,1747905046649,-430.0,0.00022739,2]
[361947706,1747905046659,-514.37,0.00022739,2]
[361947708,1747905046669,-510.0,0.00022739,2]
[361947710,1747905046679,-430.0,0.00022739,2]
[361947712,1747905046688,-430.0,0.00022739,2]
[361947715,1747905046698,-430.0,0.00022739,2]
[361947717,1747905046711,-430.0,0.00022739,2]
[361947719,1747905046720,-650.91,0.00022739,2]
[361947721,1747905046730,-1542.43,0.00022739,2]
[361947723,1747905046740,-453.72,0.00022739,2]
[361947725,1747905046750,-430.0,0.00022739,2]
[361947727,1747905046759,-1039.39,0.00022739,2]
[361947729,1747905046770,-430.0,0.00022739,2]
[361947731,1747905046779,-430.0,0.00022739,2]
[361947733,1747905046789,-430.0,0.00022739,2]
[361947735,1747905046800,-939.47,0.00022739,2]
[361947737,1747905046809,-430.0,0.00022739,2]
[361947739,1747905046819,-502.24,0.00022739,2]
[361947742,1747905046828,-430.0,0.00022739,2]
[361947744,1747905046839,-430.0,0.00022739,2]
[361947746,1747905046848,-615.75,0.00022739,2]
[361947748,1747905046858,-430.0,0.00022739,2]
[361947750,1747905046867,-430.0,0.00022739,2]
[361947752,1747905046877,-430.0,0.00022739,2]
[361947754,1747905046888,-430.0,0.00022739,2]
[361947756,1747905046897,-430.0,0.00022739,2]
[361947758,1747905046907,-430.0,0.00022739,2]
[361947760,1747905046918,-2634.84,0.00022739,2]
[361947762,1747905046928,-430.0,0.00022739,2]
[361947764,1747905046937,-430.0,0.00022739,2]
[361947766,1747905046948,-1270.52,0.00022739,2]
[361947768,1747905046960,-430.0,0.00022739,2]
[361947770,1747905046969,-430.0,0.00022739,2]
[361947773,1747905046980,-430.0,0.00022739,2]
[361947775,1747905046990,-3443.6,0.00022739,2]
[361947776,1747905046999,-430.0,0.00022739,2]
[361947779,1747905047010,-430.0,0.00022739,2]
[361947781,1747905047021,-430.0,0.00022739,2]
[361947783,1747905047033,-629.54,0.00022739,2]
[361947785,1747905047043,-430.0,0.00022739,2]
[361947787,1747905047053,-151.0,0.00022739,7]
[361947789,1747905047063,-390.0,0.00022739,2]
[361947791,1747905047072,-1159.65,0.00022739,2]
[361947793,1747905047083,-624.34,0.00022739,2]
[361947795,1747905047093,-430.0,0.00022739,2]
[361947797,1747905047104,-162.16195882,0.00022739,2]
[361947799,1747905047113,-430.0,0.00022739,2]
[361947802,1747905047124,-430.0,0.00022739,2]
[361947804,1747905047134,-430.0,0.00022739,2]
[361947806,1747905047144,-156.19192777,0.00022739,2]
[361947808,1747905047154,-430.0,0.00022739,2]
[361947810,1747905047164,-524.15487064,0.00022807,2]
[361947812,1747905047178,-3225.94447753,0.00022831,8]
[361947814,1747905047187,-420.0,0.00022842,2]
[361947816,1747905047197,-420.0,0.00022842,2]
[361947818,1747905047210,-2636.45849817,0.00022854,2]
[361947820,1747905047219,-3225.94447753,0.00022934,8]
[361947822,1747905047230,-1680.0,0.00022951,2]
[361947824,1747905047239,-500.0,0.00023,30]
[361947826,1747905047249,-740.76057521,0.00023,30]
[361947828,1747905047259,-508.12,0.00023012,2]
[361947830,1747905047270,-508.12,0.00023012,2]
[361947832,1747905047279,-430.0,0.00023013,2]
[361947834,1747905047288,-370.0,0.00023013,2]
[361947836,1747905047298,-430.0,0.00023013,2]
[361947838,1747905047307,-430.0,0.00023013,2]
[361947840,1747905047317,-430.0,0.00023013,2]
[361947842,1747905047326,-443.92331763,0.00023013,2]
[361947844,1747905047336,-430.0,0.00023013,2]
[361947846,1747905047346,-430.0,0.00023013,2]
[361947848,1747905047355,-535.7,0.00023013,2]
[361947851,1747905047365,-430.0,0.00023013,2]
[361947853,1747905047375,-500.65,0.00023013,2]
[361947855,1747905047385,-430.0,0.00023013,2]
[361947857,1747905047395,-430.0,0.00023013,2]
[361947858,1747905047404,-430.0,0.00023013,2]
[361947861,1747905047414,-430.0,0.00023013,2]
[361947863,1747905047424,-430.0,0.00023013,2]
[361947865,1747905047433,-430.0,0.00023013,2]
[361947867,1747905047443,-430.0,0.00023013,2]
[361947869,1747905047453,-430.0,0.00023013,2]
[361947871,1747905047463,-430.0,0.00023013,2]
[361947873,1747905047472,-430.0,0.00023013,2]
[361947875,1747905047482,-578.48,0.00023013,2]
[361947877,1747905047491,-514.01,0.00023013,2]
[361947879,1747905047500,-553.80305744,0.00023013,2]
[361947881,1747905047511,-430.0,0.00023013,2]
[361947883,1747905047520,-430.0,0.00023013,2]
[361947885,1747905047529,-430.0,0.00023013,2]
[361947887,1747905047539,-430.0,0.00023013,2]
[361947889,1747905047548,-430.0,0.00023013,2]
[361947891,1747905047559,-681.73,0.00023013,2]